Workbook

Sheet Calculator
C3: SVCE Residential Cost Comparison Calculator | J3: Effective 4/1/2018
C6: =IF(ISNUMBER(SEARCH("-1",D9)),"Enter Your Total Monthly Usage (kWh)","") -> Enter Your Total Monthly Usage (kWh) | D6: 0 | E6: Select Your Billing Month | F6: May-Oct
C7: Enter usage for one summer (May-Oct) or one winter (Nov-Apr) month | E7: Select which range of months your bill falls in
C8: Additional Rate Options
C9: Non-Basic Rate Schedule | D9: Basic Residential (E-1)
C10: =IF(VLOOKUP($D$9,Rates!$A$2:$H$15,3,FALSE)=FALSE,"","Summer Peak Usage (kWh)") ->  | F10: =IF(VLOOKUP($D$9,Rates!$A$2:$H$15,6,FALSE)=FALSE,"","Winter Peak Usage (kWh)") -> 
C11: =IF(VLOOKUP($D$9,Rates!$A$2:$H$15,4,FALSE)=FALSE,"","Summer Partial Peak Usage (kWh)") ->  | F11: =IF(VLOOKUP($D$9,Rates!$A$2:$H$15,7,FALSE)=FALSE,"","Winter Partial Peak Usage (kWh)") -> 
C12: =IF(VLOOKUP($D$9,Rates!$A$2:$H$15,5,FALSE)=FALSE,"","Summer Off Peak Usage (kWh)") ->  | F12: =IF(VLOOKUP($D$9,Rates!$A$2:$H$15,8,FALSE)=FALSE,"","Winter Off Peak Usage (kWh)") -> 
E14: Optional Information (Default Values Represent a Typical Customer)
C15: Days in Billing Cycle | D15: 31 | F15: Baseline Territory (click for map) | H15: X
C16: Primary Heating Source | D16: Gas | F16: PCIA Vintage (from PG&E Delivery page of your bill) | H16: 2017
C18: (usage details can typically be found on the third page of your bill)
E19: SVCE GreenStart | F19: PG&E Service | H19: SVCE GreenPrime | I19: PG&E Solar 100
D20: PG&E Delivery Costs | E20: =F20 -> 0 | F20: =IFERROR('Data & Calculations'!B74,0) -> 0 | H20: =F20 -> 0 | I20: =IF(D6="","$0.00",F20) -> 0
D21: Generation Costs | E21: ='Data & Calculations'!C75 -> 0 | F21: ='Data & Calculations'!B75 -> 0 | H21: =E21+'Data & Calculations'!I59*'Data & Calculations'!B69 -> 0 | I21: =IF(D6="","$0.00",F21+(D6*'Data & Calculations'!B71)-Calculator!I22) -> 0
D22: Additional PG&E Fees | E22: ='Data & Calculations'!C76 -> 0 | H22: =E22 -> 0 | I22: =IF(D6="","$0.00",H22) -> 0
D23: Total Electric Charges | E23: =SUM(E20:E22) -> 0 | F23: =SUM(F20:F22) -> 0 | H23: =SUM(H20:H22) -> 0 | I23: =SUM(I20:I22) -> 0
C26: Frequently Asked Questions:
C27: Q: I have a CARE (California Affordable Rates for Energy) discount. Will I still receive this with SVCE?
C28: A: CARE is a state-mandated program, and you'll receive the same discount as before. To determine applicable CARE discounts, select CARE rates under Advanced Options (above).
C30: Q: I have medical equipment at home and am granted a special rate by PG&E (also known as a "Medical Baseline" rate). Will I remain eligible for the Medical Baseline rate with SVCE?
C31: A: Yes. SVCE customers remain eligible for Medical Baseline rates and will continue to receive applicable discounts after enrollment in SVCE service. Additionally, they are exempt from additional PG&E fees.
C34: Q: Does SVCE offer special rates for Electric Vehicle owners?
C35: A: Silicon Valley Clean Energy's rates mirror those of PG&E, so your rate plan remains the same, but will cost less than PG&E's equivalent generation rate for GreenStart.
C37: Q: Are SVCE customers exempt from tiered rates - rates that progressively increase as customers use more energy throughout each billing period?
C38: A: No. Tiered rates are an important element of utility rate design and are mandated by the California Public Utilities Commission. Tiered rates are intended to promote energy conservation and are assessed through PG&E's delivery charges for all utility customers.
C41: For more commonly asked questions, please visit our full FAQ. https://www.svcleanenergy.org/faqs
C46: Service Options | D46: Renewable Content (% of Total Power Supply) | E46: Emissions Factor (lbs. CO2/MWh)* | F46: Estimated Emissions (lbs. CO2) | H46: Service Description
C47: SVCE GreenStart (50%) | D47: 0.5 | E47: <25 | F47: =CONCATENATE(ROUND(SUM(D$10:H$12,D$6)*25/1000,0)," lbs.") -> 0 lbs. | H47: Basic SVCE service (default)
C48: PG&E Standard (30%) | D48: 0.33 | E48: 294 | F48: =CONCATENATE(ROUND(SUM(D$10:H$12,D$6)*E48/1000,0)," lbs.") -> 0 lbs. | H48: Basic PG&E service (opt out)
C49: SVCE GreenPrime (100%) | D49: 1 | E49: 0 | F49: =CONCATENATE(ROUND(SUM(D$10:H$12,D$6)*E49/1000,1)," lbs.") -> 0 lbs. | H49: Optional 100% renewable SVCE service
C50: PG&E Solar Choice (50%) | D50: 0.65 | E50: =(1-D50)*E48 -> 102.9 | F50: 0 lbs. | H50: Optional 50% solar PG&E service
C51: PG&E Solar Choice (100%) | D51: 1 | E51: 0 | F51: 0 lbs. | H51: Optional 100% solar PG&E service
C52: * As reported to the California Energy Commission’s Power Source Disclosure Program, reflecting PG&E's most currently available emission factor (for CY 2016), as verified by The Climate Registry. Silicon Valley Clean Energy’s generation data is forecast for 2017 and may be subject to change. Actual generation data will be reported to the California Energy Commission in 2018.

Sheet Data & Calculations
A1: Determined Bundled Rate (automated)
A2: =Calculator!D9 -> Basic Residential (E-1) | B2: =Rates!B2 -> All Usage | C2: =Rates!C2 -> S Pk | D2: =Rates!D2 -> S Pt | E2: =Rates!E2 -> S Off | F2: =Rates!F2 -> W Pk | G2: =Rates!G2 -> W Pt | H2: =Rates!H2 -> W Off | I2: =Rates!I2 -> Meter Charge | J2: =Rates!J2 -> Minimum Bill
A3: Tier 1 | B3: =VLOOKUP(Calculator!$D$9,Rates!$A$3:$AB$17,MATCH(B$2,Rates!$A$2:$J$2,0),FALSE) -> 0.21169 | C3: =VLOOKUP(Calculator!$D$9,Rates!$A$3:$AB$17,MATCH(C$2,Rates!$A$2:$J$2,0),FALSE) -> FALSE | D3: =VLOOKUP(Calculator!$D$9,Rates!$A$3:$AB$17,MATCH(D$2,Rates!$A$2:$J$2,0),FALSE) -> FALSE | E3: =VLOOKUP(Calculator!$D$9,Rates!$A$3:$AB$17,MATCH(E$2,Rates!$A$2:$J$2,0),FALSE) -> FALSE | F3: =VLOOKUP(Calculator!$D$9,Rates!$A$3:$AB$17,MATCH(F$2,Rates!$A$2:$J$2,0),FALSE) -> FALSE | G3: =VLOOKUP(Calculator!$D$9,Rates!$A$3:$AB$17,MATCH(G$2,Rates!$A$2:$J$2,0),FALSE) -> FALSE | H3: =VLOOKUP(Calculator!$D$9,Rates!$A$3:$AB$17,MATCH(H$2,Rates!$A$2:$J$2,0),FALSE) -> FALSE | I3: =IFERROR(VLOOKUP(Calculator!$D$9,Rates!$A$3:$AB$17,MATCH(I$2,Rates!$A$2:$J$2,0),FALSE),0) -> 0 | J3: =IFERROR(VLOOKUP(Calculator!$D$9,Rates!$A$3:$AB$17,MATCH(J2,Rates!$A$2:$J$2,0),FALSE),0) -> 0.32854
A4: Tier 2 | B4: =VLOOKUP(Calculator!$D$9,Rates!$A$3:$AB$17,MATCH(B$2,Rates!$A$2:$J$2,0)+10,FALSE) -> 0.27993 | C4: =VLOOKUP(Calculator!$D$9,Rates!$A$3:$AB$17,MATCH(C$2,Rates!$A$2:$J$2,0)+10,FALSE) -> FALSE | D4: =VLOOKUP(Calculator!$D$9,Rates!$A$3:$AB$17,MATCH(D$2,Rates!$A$2:$J$2,0)+10,FALSE) -> FALSE | E4: =VLOOKUP(Calculator!$D$9,Rates!$A$3:$AB$17,MATCH(E$2,Rates!$A$2:$J$2,0)+10,FALSE) -> FALSE | F4: =VLOOKUP(Calculator!$D$9,Rates!$A$3:$AB$17,MATCH(F$2,Rates!$A$2:$J$2,0)+10,FALSE) -> FALSE | G4: =VLOOKUP(Calculator!$D$9,Rates!$A$3:$AB$17,MATCH(G$2,Rates!$A$2:$J$2,0)+10,FALSE) -> FALSE | H4: =VLOOKUP(Calculator!$D$9,Rates!$A$3:$AB$17,MATCH(H$2,Rates!$A$2:$J$2,0)+10,FALSE) -> FALSE
A5: Tier 3 | B5: =VLOOKUP(Calculator!$D$9,Rates!$A$3:$AB$17,MATCH(B$2,Rates!$A$2:$J$2,0)+19,FALSE) -> 0.43343 | C5: =VLOOKUP(Calculator!$D$9,Rates!$A$3:$AB$17,MATCH(C$2,Rates!$A$2:$J$2,0)+19,FALSE) -> FALSE | D5: =VLOOKUP(Calculator!$D$9,Rates!$A$3:$AB$17,MATCH(D$2,Rates!$A$2:$J$2,0)+19,FALSE) -> FALSE | E5: =VLOOKUP(Calculator!$D$9,Rates!$A$3:$AB$17,MATCH(E$2,Rates!$A$2:$J$2,0)+19,FALSE) -> FALSE | F5: =VLOOKUP(Calculator!$D$9,Rates!$A$3:$AB$17,MATCH(F$2,Rates!$A$2:$J$2,0)+19,FALSE) -> FALSE | G5: =VLOOKUP(Calculator!$D$9,Rates!$A$3:$AB$17,MATCH(G$2,Rates!$A$2:$J$2,0)+19,FALSE) -> FALSE | H5: =VLOOKUP(Calculator!$D$9,Rates!$A$3:$AB$17,MATCH(H$2,Rates!$A$2:$J$2,0)+19,FALSE) -> FALSE
A7: Determined Bundled Charges (automated)
A8: =A2 -> Basic Residential (E-1) | B8: All Usage | C8: S Pk | D8: S Pt | E8: S Off | F8: W Pk | G8: W Pt | H8: W Off | I8: Meter Charge | J8: Total
A9: =A3 -> Tier 1 | B9: =B3*C64 ->  | I9: =I3*Calculator!D15 -> 0
A10: =A4 -> Tier 2
A11: =A5 -> Tier 3
A12: Total | B12: =SUM(B9:B11) ->  | I12: =IFERROR(SUM(I9:I11),0) -> 0 | J12: =SUM(B12:I12) -> 
A14: Determined Generation Rates (automated)
A15: =A2 -> Basic Residential (E-1) | B15: All Usage | C15: S Pk | D15: S Pt | E15: S Off | F15: W Pk | G15: W Pt | H15: W Off | I15: NEM Bonus
A16: PGE | B16: =VLOOKUP(Calculator!$D$9,Rates!$A$22:$H$36,MATCH(B$15,Rates!$A$2:$J$2,0),FALSE) -> 0.1078 | C16: =VLOOKUP(Calculator!$D$9,Rates!$A$22:$H$36,MATCH(C$15,Rates!$A$2:$J$2,0),FALSE) -> FALSE | D16: =VLOOKUP(Calculator!$D$9,Rates!$A$22:$H$36,MATCH(D$15,Rates!$A$2:$J$2,0),FALSE) -> FALSE | E16: =VLOOKUP(Calculator!$D$9,Rates!$A$22:$H$36,MATCH(E$15,Rates!$A$2:$J$2,0),FALSE) -> FALSE | F16: =VLOOKUP(Calculator!$D$9,Rates!$A$22:$H$36,MATCH(F$15,Rates!$A$2:$J$2,0),FALSE) -> FALSE | G16: =VLOOKUP(Calculator!$D$9,Rates!$A$22:$H$36,MATCH(G$15,Rates!$A$2:$J$2,0),FALSE) -> FALSE | H16: =VLOOKUP(Calculator!$D$9,Rates!$A$22:$H$36,MATCH(H$15,Rates!$A$2:$J$2,0),FALSE) -> FALSE
A17: SVCE | B17: =VLOOKUP(Calculator!$D$9,Rates!$A$39:$H$53,MATCH(B$15,Rates!$A$2:$J$2,0),FALSE) -> 0.06732 | C17: =VLOOKUP(Calculator!$D$9,Rates!$A$39:$H$53,MATCH(C$15,Rates!$A$2:$J$2,0),FALSE) -> FALSE | D17: =VLOOKUP(Calculator!$D$9,Rates!$A$39:$H$53,MATCH(D$15,Rates!$A$2:$J$2,0),FALSE) -> FALSE | E17: =VLOOKUP(Calculator!$D$9,Rates!$A$39:$H$53,MATCH(E$15,Rates!$A$2:$J$2,0),FALSE) -> FALSE | F17: =VLOOKUP(Calculator!$D$9,Rates!$A$39:$H$53,MATCH(F$15,Rates!$A$2:$J$2,0),FALSE) -> FALSE | G17: =VLOOKUP(Calculator!$D$9,Rates!$A$39:$H$53,MATCH(G$15,Rates!$A$2:$J$2,0),FALSE) -> FALSE | H17: =VLOOKUP(Calculator!$D$9,Rates!$A$39:$H$53,MATCH(H$15,Rates!$A$2:$J$2,0),FALSE) -> FALSE | I17: =B69 -> 0.008
A19: Determined Generation Charges (automated)
A20: =A2 -> Basic Residential (E-1) | B20: All Usage | C20: S Pk | D20: S Pt | E20: S Off | F20: W Pk | G20: W Pt | H20: W Off | I20: NEM Bonus | J20: Total
A21: PGE | B21: =B16*B$59 -> 0 | C21: 0 | D21: 0 | E21: 0 | F21: 0 | G21: 0 | H21: 0 | J21: =SUM(B21:H21) -> 0
A22: SVCE | B22: 0 | C22: 0 | D22: 0 | E22: 0 | F22: 0 | G22: 0 | H22: 0 | I22: =SUMIF(B59:H59,"<0")*I17 -> 0 | J22: =SUM(B22:I22) -> 0
A24: Determined Delivery Charges (automated)
A25: =A2 -> Basic Residential (E-1) | B25: All Usage | C25: S Pk | D25: S Pt | E25: S Off | F25: W Pk | G25: W Pt | H25: W Off | I25: Meter Charge | J25: Total
A26: PGE | B26: =B$12-B21 ->  | I26: =I9-I21 -> 0 | J26: =SUM(B26:I26) -> 
A27: SVCE | I27: =I26 -> 0
A29: Baseline Quantities (annual update)
A30: Basic (Gas) | B30: Summer | C30: Winter | E30: Electric | F30: Summer | G30: Winter
A31: T | B31: 7 | C31: 8.5 | E31: T | F31: 8.3 | G31: 14.9
A32: X | B32: 10.1 | C32: 10.9 | E32: X | F32: 9.3 | G32: 16.7
A34: Fees (annual update) | B34: PCIA | C34: FF | D34: Total
A35: Pre-2009 | B35: 0 | C35: 0.0008 | D35: =SUM(B35:C35) -> 0.0008
A36: 2009 | B36: 0.02785 | C36: 0.0006 | D36: 0.02845
A37: 2010 | B37: 0.03167 | C37: 0.00057 | D37: 0.03224
A38: 2011 | B38: 0.03286 | C38: 0.00056 | D38: 0.03342
A39: 2012 | B39: 0.03379 | C39: 0.00055 | D39: 0.03434
A40: 2013 | B40: 0.03388 | C40: 0.00055 | D40: 0.03443
A41: 2014 | B41: 0.03354 | C41: 0.00055 | D41: 0.03409
A42: 2015 | B42: 0.03338 | C42: 0.00055 | D42: 0.03393
A43: 2016 | B43: 0.03345 | C43: 0.00055 | D43: 0.034
A44: 2017 | B44: 0.03346 | C44: 0.00055 | D44: 0.03401
A45: 2018 | B45: 0.03346 | C45: 0.00055 | D45: 0.03401
A48: Extra Fee Calculations (automated - DO NOT TOUCH; Vintage calculation needs to be updated periodically though)
A49: Vintage: | B49: =Calculator!H16 -> 2017
A50: Determined Fees: | B50: =VLOOKUP(B49,A35:D46,4) -> 0.03401 | C50: Franchise Only: | D50: =VLOOKUP(B49,A35:D42,3) -> 0.00055
A52: Delivery Rates (auto updates - DO NOT TOUCH)
A53: =A2 -> Basic Residential (E-1) | B53: All Usage | C53: S Pk | D53: S Pt | E53: S Off | F53: W Pk | G53: W Pt | H53: W Off | I53: Meter Charge
A54: Tier 1 | B54: =B3-B$16 -> 0.10389 | C54: 0 | D54: 0 | E54: 0 | F54: 0 | G54: 0 | H54: 0 | I54: 0
A55: Tier 2 | B55: 0.17213 | C55: 0 | D55: 0 | E55: 0 | F55: 0 | G55: 0 | H55: 0 | I55: 0
A56: High Usage | B56: 0.32563 | C56: 0 | D56: 0 | E56: 0 | F56: 0 | G56: 0 | H56: 0 | I56: 0
A58: Total kWh (automated) | B58: All Usage | C58: S Pk | D58: S Pt | E58: S Off | F58: W Pk | G58: W Pt | H58: W Off | I58: Total
A59: All Usage | B59: =IF(B3=FALSE,0,Calculator!D6) -> 0 | C59: =IF(C3=FALSE,0,Calculator!D10) -> 0 | D59: =IF(D3=FALSE,0,Calculator!D11) -> 0 | E59: =IF(E3=FALSE,0,Calculator!D12) -> 0 | F59: =IF(F3=FALSE,0,Calculator!H10) -> 0 | G59: =IF(G3=FALSE,0,Calculator!H11) -> 0 | H59: =IF(H3=FALSE,0,Calculator!H12) -> 0 | I59: =SUM(B59:H59) -> 0
A60: Pct of Total | B60: =B59/$I$59 ->  | C60: =C59/$I$59 -> 
A62: Tiering Calculations (auto updates - DO NOT TOUCH)
A63: Calculated Baseline: | B63: =IF(AND(Calculator!D16="Gas",Calculator!H15="T",Calculator!F6="May-Oct"),B31,IF(AND(Calculator!D16="Gas",Calculator!H15="X",Calculator!F6="May-Oct"),B32,IF(AND(Calculator!D16="Gas",Calculator!H15="T",Calculator!F6="Nov-Apr"),C31,IF(AND(Calculator!D16="Gas",Calculator!H15="X",Calculator!F6="Nov-Apr"),C32,IF(AND(Calculator!D16="Electric",Calculator!H15="T",Calculator!F6="May-Oct"),F31,IF(AND(Calculator!D16="Electric",Calculator!H15="X",Calculator!F6="May-Oct"),F32,IF(AND(Calculator!D16="Electric",Calculator!H15="T",Calculator!F6="Nov-Apr"),G31,IF(AND(Calculator!D16="Electric",Calculator!H15="X",Calculator!F6="Nov-Apr"),G32,"ERROR")))))))) -> 10.1 | C63: =B58 -> All Usage | D63: S Pk | E63: S Pt | F63: S Off | G63: W Pk | H63: W Pt | I63: W Off | J63: Total Tier Allocation
A64: Tier 1 | B64: =B63*Calculator!D15 -> 313.1 | C64: =B$60*$J64 ->  | J64: =MIN(B64,I59) -> 0
A65: Tier 2 | B65: =B64*3 -> 939.3 | C65: =B$60*$J65 ->  | J65: =MIN(B65,I59-J64) -> 0
A66: High Usage Rate | B66: all above | J66: =MAX(0,I59-J64-J65) -> 0
A68: Misc Rates
A69: GreenPrime Rate | B69: 0.008
A70: Minimum Bill | B70: =J3*Calculator!D15 -> 10.18474 | C70: (automated)
A71: Solar Choice | B71: 0.02002
A72: Totals (automated)
B73: PG&E | C73: SVCE
A74: Delivery | B74: =MAX(B70,J26) ->  | C74: =B74 -> 
A75: Generation | B75: =J21 -> 0 | C75: =J22 -> 0
A76: PCIA/FF | B76: 0 | C76: =B50*I59 -> 0
A77: Total | B77: =SUM(B74:B76) ->  | C77: =SUM(C74:C76) -> 

Sheet Rates
A1: Bundled Rate
A2: Tier 1 | B2: All Usage | C2: S Pk | D2: S Pt | E2: S Off | F2: W Pk | G2: W Pt | H2: W Off | I2: Meter Charge | J2: Minimum Bill | K2: Tier 2 | L2: All Usage | M2: S Pk | N2: S Pt | O2: S Off | P2: W Pk | Q2: W Pt | R2: W Off | T2: High Usage | U2: All Usage | V2: S Pk | W2: S Pt | X2: S Off | Y2: W Pk | Z2: W Pt | AA2: W Off
A3: Basic Residential (E-1) | B3: 0.21169 | C3: FALSE | D3: FALSE | E3: FALSE | F3: FALSE | G3: FALSE | H3: FALSE | J3: 0.32854 | K3: =A3 -> Basic Residential (E-1) | L3: 0.27993 | M3: FALSE | N3: FALSE | O3: FALSE | P3: FALSE | Q3: FALSE | R3: FALSE | T3: =K3 -> Basic Residential (E-1) | U3: 0.43343 | V3: FALSE | W3: FALSE | X3: FALSE | Y3: FALSE | Z3: FALSE | AA3: FALSE
A4: Basic CARE Res. (EL-1) | B4: 0.13453 | C4: FALSE | D4: FALSE | E4: FALSE | F4: FALSE | G4: FALSE | H4: FALSE | J4: 0.16427 | K4: =A4 -> Basic CARE Res. (EL-1) | L4: 0.17767 | M4: FALSE | N4: FALSE | O4: FALSE | P4: FALSE | Q4: FALSE | R4: FALSE | T4: Basic CARE Res. (EL-1) | U4: 0.2751 | V4: FALSE | W4: FALSE | X4: FALSE | Y4: FALSE | Z4: FALSE | AA4: FALSE
A5: E-TOU-A | B5: =L5 -> FALSE | C5: =M5+D18 -> 0.31399 | D5: =N5 -> FALSE | E5: =O5+D18 -> 0.23842 | F5: =P5+D18 -> 0.19602 | G5: FALSE | H5: =R5+D18 -> 0.18173 | J5: =J3 -> 0.32854 | K5: =A5 -> E-TOU-A | L5: FALSE | M5: 0.3998 | N5: FALSE | O5: 0.32423 | P5: 0.28183 | Q5: FALSE | R5: 0.26754 | T5: E-TOU-A | U5: FALSE | V5: 0.3998 | W5: FALSE | X5: 0.32423 | Y5: 0.28183 | Z5: FALSE | AA5: 0.26754
A6: E-TOU-B | B6: =L6 -> FALSE | C6: =M6 -> 0.37119 | D6: FALSE | E6: 0.26813 | F6: 0.23372 | G6: FALSE | H6: 0.21492 | J6: =J3 -> 0.32854 | K6: E-TOU-B | L6: FALSE | M6: 0.37119 | N6: FALSE | O6: 0.26813 | P6: 0.23372 | Q6: FALSE | R6: 0.21492 | T6: E-TOU-B | U6: FALSE | V6: 0.37119 | W6: FALSE | X6: 0.26813 | Y6: 0.23372 | Z6: FALSE | AA6: 0.21492
A7: E-TOU-C | B7: =L7 -> FALSE | C7: =M7 -> 0.37569 | D7: =N7 -> FALSE | E7: =O7 -> 0.31225 | F7: =P7 -> 0.2886 | G7: =Q7 -> FALSE | H7: =R7 -> 0.27127 | J7: 0.32854 | K7: E-TOU-C | L7: FALSE | M7: 0.37569 | N7: FALSE | O7: 0.31225 | P7: 0.2886 | Q7: FALSE | R7: 0.27127 | T7: E-TOU-C
A8: EL-TOU-A (CARE) | B8: =L8 -> FALSE | C8: =M8+D19 -> 0.19623 | D8: FALSE | E8: =O8+D19 -> 0.14862 | F8: =P8+D19 -> 0.12191 | G8: FALSE | H8: =R8+D19 -> 0.11291 | J8: =J4 -> 0.16427 | K8: EL-TOU-A (CARE) | L8: FALSE | M8: 0.2417 | N8: FALSE | O8: 0.19409 | P8: 0.16738 | Q8: FALSE | R8: 0.15838 | T8: EL-TOU-A (CARE) | U8: FALSE | V8: 0.2417 | W8: FALSE | X8: 0.19409 | Y8: 0.16738 | Z8: FALSE | AA8: 0.15838
A9: EL-TOU-B (CARE) | B9: FALSE | C9: 0.22788 | D9: FALSE | E9: 0.16296 | F9: 0.14128 | G9: FALSE | H9: 0.12943 | J9: =J4 -> 0.16427 | K9: EL-TOU-B (CARE) | L9: FALSE | M9: 0.22788 | N9: FALSE | O9: 0.16296 | P9: 0.14128 | Q9: FALSE | R9: 0.12943 | T9: EL-TOU-B (CARE) | U9: FALSE | V9: 0.22788 | W9: FALSE | X9: 0.16296 | Y9: 0.14128 | Z9: FALSE | AA9: 0.12943
A10: EV-A | B10: FALSE | C10: 0.47334 | D10: 0.25994 | E10: 0.12753 | F10: 0.32987 | G10: 0.20417 | H10: 0.13046 | J10: =J3 -> 0.32854 | K10: EV-A | L10: FALSE | M10: 0.47334 | N10: 0.25994 | O10: 0.12753 | P10: 0.32987 | Q10: 0.20417 | R10: 0.13046 | T10: EV-A | U10: FALSE | V10: 0.47334 | W10: 0.25994 | X10: 0.12753 | Y10: 0.32987 | Z10: 0.20417 | AA10: 0.13046
A11: EV-B | B11: FALSE | C11: 0.46665 | D11: 0.25659 | E11: 0.12705 | F11: 0.32274 | G11: 0.20061 | H11: 0.12995 | I11: 0.04928 | J11: =J3 -> 0.32854 | K11: EV-B | L11: FALSE | M11: 0.46665 | N11: 0.25659 | O11: 0.12705 | P11: 0.32274 | Q11: 0.20061 | R11: 0.12995 | T11: EV-B | U11: FALSE | V11: 0.46665 | W11: 0.25659 | X11: 0.12705 | Y11: 0.32274 | Z11: 0.20061 | AA11: 0.12995
A13: ="--- Closed Rates ---" -> --- Closed Rates --- | K13: =A13 -> --- Closed Rates --- | T13: =K13 -> --- Closed Rates ---
A14: E-6 (Time-of-Use) | B14: FALSE | C14: 0.37123 | D14: 0.25596 | E14: 0.17918 | F14: FALSE | G14: 0.20035 | H14: 0.18352 | I14: 0.25298 | J14: =J3 -> 0.32854 | K14: E-6 (Time-of-Use) | L14: FALSE | M14: 0.45704 | N14: 0.34177 | O14: 0.26499 | P14: FALSE | Q14: 0.26478 | R14: 0.24795 | T14: =K14 -> E-6 (Time-of-Use) | U14: FALSE | V14: =M14 -> 0.45704 | W14: =N14 -> 0.34177 | X14: 0.26499 | Y14: FALSE | Z14: 0.26478 | AA14: 0.24795
A15: EL-6 (CARE, Time-of-Use) | B15: FALSE | C15: 0.25133 | D15: 0.16683 | E15: 0.11055 | F15: FALSE | G15: 0.12607 | H15: 0.11372 | I15: 0.20238 | J15: =J4 -> 0.16427 | K15: EL-6 (CARE, Time-of-Use) | L15: FALSE | M15: 0.2968 | N15: 0.2123 | O15: 0.15602 | P15: FALSE | Q15: 0.17154 | R15: 0.15919 | T15: =K15 -> EL-6 (CARE, Time-of-Use) | U15: FALSE | V15: =M15 -> 0.2968 | W15: 0.2123 | X15: 0.15602 | Y15: FALSE | Z15: 0.17154 | AA15: 0.15919
A18: Baseline Credit (E-TOU only) | D18: -0.08581
A19: Baseline Credit (EL-TOU only) | D19: -0.04547
A21: PG&E Generation Rate | B21: All Usage | C21: =C2 -> S Pk | D21: S Pt | E21: S Off | F21: W Pk | G21: W Pt | H21: W Off
A22: =A3 -> Basic Residential (E-1) | B22: 0.1078 | C22: FALSE | D22: FALSE | E22: FALSE | F22: FALSE | G22: FALSE | H22: FALSE
A23: Basic CARE Res. (EL-1) | B23: =B22 -> 0.1078 | C23: FALSE | D23: FALSE | E23: FALSE | F23: FALSE | G23: FALSE | H23: FALSE
A24: E-TOU-A | B24: FALSE | C24: 0.1905 | D24: FALSE | E24: 0.11493 | F24: 0.10316 | G24: FALSE | H24: 0.08887
A25: E-TOU-B | B25: FALSE | C25: 0.21238 | D25: FALSE | E25: 0.10932 | F25: 0.10554 | G25: FALSE | H25: 0.08674
A26: E-TOU-C | B26: FALSE | C26: 0.16645 | D26: FALSE | E26: 0.10301 | F26: 0.10999 | G26: FALSE | H26: 0.09266
A27: EL-TOU-A (CARE) | B27: FALSE | C27: =C24 -> 0.1905 | D27: FALSE | E27: =E24 -> 0.11493 | F27: =F24 -> 0.10316 | G27: FALSE | H27: =H24 -> 0.08887
A28: EL-TOU-B (CARE) | B28: FALSE | C28: =C25 -> 0.21238 | D28: FALSE | E28: =E25 -> 0.10932 | F28: =F25 -> 0.10554 | G28: FALSE | H28: =H25 -> 0.08674
A29: EV-A | B29: FALSE | C29: 0.24674 | D29: 0.11891 | E29: 0.05976 | F29: 0.0922 | G29: 0.05761 | H29: 0.06189
A30: EV-B | B30: FALSE | C30: =C29 -> 0.24674 | D30: =D29 -> 0.11891 | E30: 0.05976 | F30: 0.0922 | G30: 0.05761 | H30: 0.06189
A32: =A13 -> --- Closed Rates ---
A33: =A14 -> E-6 (Time-of-Use) | B33: FALSE | C33: 0.23774 | D33: 0.12489 | E33: 0.07883 | F33: FALSE | G33: 0.1044 | H33: 0.09173
A34: =A15 -> EL-6 (CARE, Time-of-Use) | B34: FALSE | C34: =C33 -> 0.23774 | D34: =D33 -> 0.12489 | E34: 0.07883 | F34: FALSE | G34: 0.1044 | H34: 0.09173
A38: SVCEA Generation Rate | B38: All Usage | C38: =C2 -> S Pk | D38: =D2 -> S Pt | E38: S Off | F38: W Pk | G38: W Pt | H38: W Off
A39: =A3 -> Basic Residential (E-1) | B39: 0.06732 | C39: FALSE | D39: FALSE | E39: FALSE | F39: FALSE | G39: FALSE | H39: FALSE
A40: Basic CARE Res. (EL-1) | B40: 0.06732 | C40: FALSE | D40: FALSE | E40: FALSE | F40: FALSE | G40: FALSE | H40: FALSE
A41: E-TOU-A | B41: FALSE | C41: 0.14506 | D41: FALSE | E41: 0.07402 | F41: 0.06296 | G41: FALSE | H41: 0.04953
A42: E-TOU-B | B42: FALSE | C42: 0.16563 | D42: FALSE | E42: 0.06875 | F42: 0.0652 | G42: FALSE | H42: 0.04753
A43: E-TOU-C | B43: FALSE | C43: 0.12245 | D43: FALSE | E43: 0.06282 | F43: 0.06938 | G43: FALSE | H43: 0.05309
A44: EL-TOU-A (CARE) | B44: FALSE | C44: =C41 -> 0.14506 | D44: FALSE | E44: =E41 -> 0.07402 | F44: =F41 -> 0.06296 | G44: FALSE | H44: =H41 -> 0.04953
A45: EL-TOU-B (CARE) | B45: FALSE | C45: =C42 -> 0.16563 | D45: FALSE | E45: =E42 -> 0.06875 | F45: =F42 -> 0.0652 | G45: FALSE | H45: =H42 -> 0.04753
A46: EV-A | B46: FALSE | C46: 0.19793 | D46: 0.07777 | E46: 0.02216 | F46: 0.05266 | G46: 0.02014 | H46: 0.02417
A47: EV-B | B47: FALSE | C47: =C46 -> 0.19793 | D47: =D46 -> 0.07777 | E47: =E46 -> 0.02216 | F47: =F46 -> 0.05266 | G47: =G46 -> 0.02014 | H47: =H46 -> 0.02417
A49: =A13 -> --- Closed Rates ---
A50: =A14 -> E-6 (Time-of-Use) | B50: FALSE | C50: 0.18947 | D50: 0.08339 | E50: 0.04009 | F50: FALSE | G50: 0.06413 | H50: 0.05222
A51: =A15 -> EL-6 (CARE, Time-of-Use) | B51: FALSE | C51: =C50 -> 0.18947 | D51: =D50 -> 0.08339 | E51: =E50 -> 0.04009 | F51: FALSE | G51: =G50 -> 0.06413 | H51: =H50 -> 0.05222

Sheet Rebundled Rates (hidden)
B1: Rates for Usage | I1: Rates for Surplus Generation (Excess NEM Credits at billing date)
A2: =Rates!A3 -> Basic Residential (E-1) | B2: MCE Rebundled | C2: PG&E Bundled | D2: Result | I2: MCE Rebundled | J2: PG&E Bundled | K2: Result
A3: Up to Baseline | B3: =C3-VLOOKUP($A$2,Rates!$A$21:$H$35,2,0)+VLOOKUP($A$2,Rates!$A$38:$H$52,2,0)+VLOOKUP(MAX('Data & Calculations'!$A$35:$A$46),'Data & Calculations'!$A$35:$D$46,4,0) -> 0.20522 | C3: =VLOOKUP(A$2,Rates!$A$2:$AB$19,2,0) -> 0.21169 | D3: MCE's rate is | E3: =IF(B3<C3,"lower by","higher by") -> lower by | F3: =ABS(C3-B3) -> 0.00647 | G3: per kWh | I3: =B3+0.01 -> 0.21522 | J3: =C3 -> 0.21169 | K3: MCE's rate is | L3: =IF(I3<J3,"lower by","higher by") -> higher by | M3: =ABS(J3-I3) -> 0.00353 | N3: per kWh
A4: 100%-200% of Baseline | B4: =C4-VLOOKUP($A$2,Rates!$A$21:$H$35,2,0)+VLOOKUP($A$2,Rates!$A$38:$H$52,2,0)+VLOOKUP(MAX('Data & Calculations'!$A$35:$A$46),'Data & Calculations'!$A$35:$D$46,4,0) -> 0.27346 | C4: =VLOOKUP(A$2,Rates!$A$2:$AB$19,12,0) -> 0.27993 | D4: MCE's rate is | E4: =IF(B4<C4,"lower by","higher by") -> lower by | F4: =ABS(C4-B4) -> 0.00647 | G4: per kWh | I4: =B4+0.01 -> 0.28346 | J4: =C4 -> 0.27993 | K4: MCE's rate is | L4: =IF(I4<J4,"lower by","higher by") -> higher by | M4: =ABS(J4-I4) -> 0.00353 | N4: per kWh
A5: Over 200% of Baseline | B5: =C5-VLOOKUP($A$2,Rates!$A$21:$H$35,2,0)+VLOOKUP($A$2,Rates!$A$38:$H$52,2,0)+VLOOKUP(MAX('Data & Calculations'!$A$35:$A$46),'Data & Calculations'!$A$35:$D$46,4,0) -> 0.42696 | C5: =VLOOKUP(A$2,Rates!$A$2:$AB$19,21,0) -> 0.43343 | D5: MCE's rate is | E5: lower by | F5: 0.00647 | G5: per kWh | I5: 0.43696 | J5: 0.43343 | K5: MCE's rate is | L5: higher by | M5: 0.00353 | N5: per kWh
A7: =Rates!A5 -> E-TOU-A | B7: MCE Rebundled | C7: PG&E Bundled | D7: Result | I7: MCE Rebundled | J7: PG&E Bundled | K7: Result
A8: Summer Peak
A9: … up to Baseline | B9: =C9-VLOOKUP($A$7,Rates!$A$21:$H$35,3,0)+VLOOKUP($A$7,Rates!$A$38:$H$52,3,0)+VLOOKUP(MAX('Data & Calculations'!$A$35:$A$46),'Data & Calculations'!$A$35:$D$46,4,0) -> 0.30256 | C9: =VLOOKUP(A$7,Rates!$A$2:$AB$19,3,0) -> 0.31399 | D9: MCE's rate is | E9: =IF(B9<C9,"lower by","higher by") -> lower by | F9: =ABS(C9-B9) -> 0.01143 | G9: per kWh | I9: =B9+0.01 -> 0.31256 | J9: =C9 -> 0.31399 | K9: MCE's rate is | L9: =IF(I9<J9,"lower by","higher by") -> lower by | M9: =ABS(J9-I9) -> 0.00143 | N9: per kWh
A10: … above Baseline | B10: =C10-VLOOKUP($A$7,Rates!$A$21:$H$35,3,0)+VLOOKUP($A$7,Rates!$A$38:$H$52,3,0)+VLOOKUP(MAX('Data & Calculations'!$A$35:$A$46),'Data & Calculations'!$A$35:$D$46,4,0) -> 0.38837 | C10: =VLOOKUP(A$7,Rates!$A$2:$AB$19,13,0) -> 0.3998 | D10: MCE's rate is | E10: lower by | F10: 0.01143 | G10: per kWh | I10: =B10+0.01 -> 0.39837 | J10: =C10 -> 0.3998 | K10: MCE's rate is | L10: lower by | M10: 0.00143 | N10: per kWh
A11: Summer Off Peak
A12: … up to Baseline | B12: =C12-VLOOKUP($A$7,Rates!$A$21:$H$35,5,0)+VLOOKUP($A$7,Rates!$A$38:$H$52,5,0)+VLOOKUP(MAX('Data & Calculations'!$A$35:$A$46),'Data & Calculations'!$A$35:$D$46,4,0) -> 0.23152 | C12: =VLOOKUP(A$7,Rates!$A$2:$AB$19,5,0) -> 0.23842 | D12: MCE's rate is | E12: =IF(B12<C12,"lower by","higher by") -> lower by | F12: =ABS(C12-B12) -> 0.0069 | G12: per kWh | I12: =B12+0.01 -> 0.24152 | J12: =C12 -> 0.23842 | K12: MCE's rate is | L12: higher by | M12: 0.0031 | N12: per kWh
A13: … above Baseline | B13: =C13-VLOOKUP($A$7,Rates!$A$21:$H$35,5,0)+VLOOKUP($A$7,Rates!$A$38:$H$52,5,0)+VLOOKUP(MAX('Data & Calculations'!$A$35:$A$46),'Data & Calculations'!$A$35:$D$46,4,0) -> 0.31733 | C13: =VLOOKUP(A$7,Rates!$A$2:$AB$19,15,0) -> 0.32423 | D13: MCE's rate is | E13: lower by | F13: 0.0069 | G13: per kWh | I13: =B13+0.01 -> 0.32733 | J13: =C13 -> 0.32423 | K13: MCE's rate is | L13: higher by | M13: 0.0031 | N13: per kWh
A14: Winter Peak
A15: … up to Baseline | B15: =C15-VLOOKUP($A$7,Rates!$A$21:$H$35,6,0)+VLOOKUP($A$7,Rates!$A$38:$H$52,6,0)+VLOOKUP(MAX('Data & Calculations'!$A$35:$A$46),'Data & Calculations'!$A$35:$D$46,4,0) -> 0.18983 | C15: =VLOOKUP(A$7,Rates!$A$2:$AB$19,6,0) -> 0.19602 | D15: MCE's rate is | E15: lower by | F15: 0.00619 | G15: per kWh | I15: =B15+0.01 -> 0.19983 | J15: =C15 -> 0.19602 | K15: MCE's rate is | L15: higher by | M15: 0.00381 | N15: per kWh
A16: … above Baseline | B16: =C16-VLOOKUP($A$7,Rates!$A$21:$H$35,6,0)+VLOOKUP($A$7,Rates!$A$38:$H$52,6,0)+VLOOKUP(MAX('Data & Calculations'!$A$35:$A$46),'Data & Calculations'!$A$35:$D$46,4,0) -> 0.27564 | C16: =VLOOKUP(A$7,Rates!$A$2:$AB$19,16,0) -> 0.28183 | D16: MCE's rate is | E16: lower by | F16: 0.00619 | G16: per kWh | I16: =B16+0.01 -> 0.28564 | J16: =C16 -> 0.28183 | K16: MCE's rate is | L16: higher by | M16: 0.00381 | N16: per kWh
A17: Winter Off Peak
A18: … up to Baseline | B18: =C18-VLOOKUP($A$7,Rates!$A$21:$H$35,8,0)+VLOOKUP($A$7,Rates!$A$38:$H$52,8,0)+VLOOKUP(MAX('Data & Calculations'!$A$35:$A$46),'Data & Calculations'!$A$35:$D$46,4,0) -> 0.1764 | C18: =VLOOKUP(A$7,Rates!$A$2:$AB$19,8,0) -> 0.18173 | D18: MCE's rate is | E18: lower by | F18: 0.00533 | G18: per kWh | I18: =B18+0.01 -> 0.1864 | J18: =C18 -> 0.18173 | K18: MCE's rate is | L18: higher by | M18: 0.00467 | N18: per kWh
A19: … above Baseline | B19: =C19-VLOOKUP($A$7,Rates!$A$21:$H$35,8,0)+VLOOKUP($A$7,Rates!$A$38:$H$52,8,0)+VLOOKUP(MAX('Data & Calculations'!$A$35:$A$46),'Data & Calculations'!$A$35:$D$46,4,0) -> 0.26221 | C19: =VLOOKUP(A$7,Rates!$A$2:$AB$19,18,0) -> 0.26754 | D19: MCE's rate is | E19: lower by | F19: 0.00533 | G19: per kWh | I19: =B19+0.01 -> 0.27221 | J19: =C19 -> 0.26754 | K19: MCE's rate is | L19: higher by | M19: 0.00467 | N19: per kWh
A21: =Rates!A6 -> E-TOU-B | B21: MCE Rebundled | C21: PG&E Bundled | D21: Result | I21: MCE Rebundled | J21: PG&E Bundled | K21: Result
A22: Summer Peak | B22: =C22-VLOOKUP($A$21,Rates!$A$21:$H$35,3,0)+VLOOKUP($A$21,Rates!$A$38:$H$52,3,0)+VLOOKUP(MAX('Data & Calculations'!$A$35:$A$46),'Data & Calculations'!$A$35:$D$46,4,0) -> 0.35845 | C22: =VLOOKUP(A$21,Rates!$A$2:$AB$19,3,0) -> 0.37119 | D22: MCE's rate is | E22: =IF(B22<C22,"lower by","higher by") -> lower by | F22: =ABS(C22-B22) -> 0.01274 | G22: per kWh | I22: =B22+0.01 -> 0.36845 | J22: =C22 -> 0.37119 | K22: MCE's rate is | L22: =IF(I22<J22,"lower by","higher by") -> lower by | M22: =ABS(J22-I22) -> 0.00274 | N22: per kWh
A23: Summer Off Peak | B23: =C23-VLOOKUP($A$21,Rates!$A$21:$H$35,5,0)+VLOOKUP($A$21,Rates!$A$38:$H$52,5,0)+VLOOKUP(MAX('Data & Calculations'!$A$35:$A$46),'Data & Calculations'!$A$35:$D$46,4,0) -> 0.26157 | C23: =VLOOKUP(A$21,Rates!$A$2:$AB$19,5,0) -> 0.26813 | D23: MCE's rate is | E23: =IF(B23<C23,"lower by","higher by") -> lower by | F23: =ABS(C23-B23) -> 0.00656 | G23: per kWh | I23: =B23+0.01 -> 0.27157 | J23: =C23 -> 0.26813 | K23: MCE's rate is | L23: =IF(I23<J23,"lower by","higher by") -> higher by | M23: =ABS(J23-I23) -> 0.00344 | N23: per kWh
A24: Winter Peak | B24: =C24-VLOOKUP($A$21,Rates!$A$21:$H$35,6,0)+VLOOKUP($A$21,Rates!$A$38:$H$52,6,0)+VLOOKUP(MAX('Data & Calculations'!$A$35:$A$46),'Data & Calculations'!$A$35:$D$46,4,0) -> 0.22739 | C24: =VLOOKUP(A$21,Rates!$A$2:$AB$19,6,0) -> 0.23372 | D24: MCE's rate is | E24: lower by | F24: 0.00633 | G24: per kWh | I24: =B24+0.01 -> 0.23739 | J24: =C24 -> 0.23372 | K24: MCE's rate is | L24: higher by | M24: 0.00367 | N24: per kWh
A25: Winter Off Peak | B25: =C25-VLOOKUP($A$21,Rates!$A$21:$H$35,8,0)+VLOOKUP($A$21,Rates!$A$38:$H$52,8,0)+VLOOKUP(MAX('Data & Calculations'!$A$35:$A$46),'Data & Calculations'!$A$35:$D$46,4,0) -> 0.20972 | C25: =VLOOKUP(A$21,Rates!$A$2:$AB$19,8,0) -> 0.21492 | D25: MCE's rate is | E25: lower by | F25: 0.0052 | G25: per kWh | I25: =B25+0.01 -> 0.21972 | J25: =C25 -> 0.21492 | K25: MCE's rate is | L25: higher by | M25: 0.0048 | N25: per kWh
A27: =Rates!A10 -> EV-A | B27: MCE Rebundled | C27: PG&E Bundled | D27: Result | I27: MCE Rebundled | J27: PG&E Bundled | K27: Result
A28: Summer Peak | B28: =C28-VLOOKUP($A$27,Rates!$A$21:$H$35,3,0)+VLOOKUP($A$27,Rates!$A$38:$H$52,3,0)+VLOOKUP(MAX('Data & Calculations'!$A$35:$A$46),'Data & Calculations'!$A$35:$D$46,4,0) -> 0.45854 | C28: =VLOOKUP(A$27,Rates!$A$2:$AB$19,3,0) -> 0.47334 | D28: MCE's rate is | E28: =IF(B28<C28,"lower by","higher by") -> lower by | F28: =ABS(C28-B28) -> 0.0148 | G28: per kWh | I28: =B28+0.01 -> 0.46854 | J28: =C28 -> 0.47334 | K28: MCE's rate is | L28: =IF(I28<J28,"lower by","higher by") -> lower by | M28: =ABS(J28-I28) -> 0.0048 | N28: per kWh
A29: Summer Partial Peak | B29: =C29-VLOOKUP($A$27,Rates!$A$21:$H$35,4,0)+VLOOKUP($A$27,Rates!$A$38:$H$52,4,0)+VLOOKUP(MAX('Data & Calculations'!$A$35:$A$46),'Data & Calculations'!$A$35:$D$46,4,0) -> 0.25281 | C29: =VLOOKUP(A$27,Rates!$A$2:$AB$19,4,0) -> 0.25994 | D29: MCE's rate is | E29: =IF(B29<C29,"lower by","higher by") -> lower by | F29: =ABS(C29-B29) -> 0.00713 | G29: per kWh | I29: =B29+0.01 -> 0.26281 | J29: =C29 -> 0.25994 | K29: MCE's rate is | L29: =IF(I29<J29,"lower by","higher by") -> higher by | M29: =ABS(J29-I29) -> 0.00287 | N29: per kWh
A30: Summer Off Peak | B30: =C30-VLOOKUP($A$27,Rates!$A$21:$H$35,5,0)+VLOOKUP($A$27,Rates!$A$38:$H$52,5,0)+VLOOKUP(MAX('Data & Calculations'!$A$35:$A$46),'Data & Calculations'!$A$35:$D$46,4,0) -> 0.12394 | C30: =VLOOKUP(A$27,Rates!$A$2:$AB$19,5,0) -> 0.12753 | D30: MCE's rate is | E30: lower by | F30: 0.00359 | G30: per kWh | I30: =B30+0.01 -> 0.13394 | J30: =C30 -> 0.12753 | K30: MCE's rate is | L30: higher by | M30: 0.00641 | N30: per kWh
A31: Winter Peak | B31: =C31-VLOOKUP($A$27,Rates!$A$21:$H$35,6,0)+VLOOKUP($A$27,Rates!$A$38:$H$52,6,0)+VLOOKUP(MAX('Data & Calculations'!$A$35:$A$46),'Data & Calculations'!$A$35:$D$46,4,0) -> 0.32434 | C31: =VLOOKUP(A$27,Rates!$A$2:$AB$19,6,0) -> 0.32987 | D31: MCE's rate is | E31: lower by | F31: 0.00553 | G31: per kWh | I31: =B31+0.01 -> 0.33434 | J31: =C31 -> 0.32987 | K31: MCE's rate is | L31: higher by | M31: 0.00447 | N31: per kWh
A32: Winter Partial Peak | B32: =C32-VLOOKUP($A$27,Rates!$A$21:$H$35,7,0)+VLOOKUP($A$27,Rates!$A$38:$H$52,7,0)+VLOOKUP(MAX('Data & Calculations'!$A$35:$A$46),'Data & Calculations'!$A$35:$D$46,4,0) -> 0.20071 | C32: =VLOOKUP(A$27,Rates!$A$2:$AB$19,7,0) -> 0.20417 | D32: MCE's rate is | E32: =IF(B32<C32,"lower by","higher by") -> lower by | F32: =ABS(C32-B32) -> 0.00346 | G32: per kWh | I32: =B32+0.01 -> 0.21071 | J32: =C32 -> 0.20417 | K32: MCE's rate is | L32: =IF(I32<J32,"lower by","higher by") -> higher by | M32: =ABS(J32-I32) -> 0.00654 | N32: per kWh
A33: Winter Off Peak | B33: =C33-VLOOKUP($A$27,Rates!$A$21:$H$35,8,0)+VLOOKUP($A$27,Rates!$A$38:$H$52,8,0)+VLOOKUP(MAX('Data & Calculations'!$A$35:$A$46),'Data & Calculations'!$A$35:$D$46,4,0) -> 0.12675 | C33: =VLOOKUP(A$27,Rates!$A$2:$AB$19,8,0) -> 0.13046 | D33: MCE's rate is | E33: lower by | F33: 0.00371 | G33: per kWh | I33: 0.13675 | J33: 0.13046 | K33: MCE's rate is | L33: higher by | M33: 0.00629 | N33: per kWh
A35: =Rates!A11 -> EV-B | B35: MCE Rebundled | C35: PG&E Bundled | D35: Result | I35: MCE Rebundled | J35: PG&E Bundled | K35: Result
A36: Summer Peak | B36: =C36-VLOOKUP($A$35,Rates!$A$21:$H$35,3,0)+VLOOKUP($A$35,Rates!$A$38:$H$52,3,0)+VLOOKUP(MAX('Data & Calculations'!$A$35:$A$46),'Data & Calculations'!$A$35:$D$46,4,0) -> 0.45185 | C36: =VLOOKUP(A$35,Rates!$A$2:$AB$19,3,0) -> 0.46665 | D36: MCE's rate is | E36: =IF(B36<C36,"lower by","higher by") -> lower by | F36: =ABS(C36-B36) -> 0.0148 | G36: per kWh | I36: =B36+0.01 -> 0.46185 | J36: =C36 -> 0.46665 | K36: MCE's rate is | L36: =IF(I36<J36,"lower by","higher by") -> lower by | M36: =ABS(J36-I36) -> 0.0048 | N36: per kWh
A37: Summer Partial Peak | B37: =C37-VLOOKUP($A$35,Rates!$A$21:$H$35,4,0)+VLOOKUP($A$35,Rates!$A$38:$H$52,4,0)+VLOOKUP(MAX('Data & Calculations'!$A$35:$A$46),'Data & Calculations'!$A$35:$D$46,4,0) -> 0.24946 | C37: =VLOOKUP(A$35,Rates!$A$2:$AB$19,4,0) -> 0.25659 | D37: MCE's rate is | E37: =IF(B37<C37,"lower by","higher by") -> lower by | F37: =ABS(C37-B37) -> 0.00713 | G37: per kWh | I37: =B37+0.01 -> 0.25946 | J37: =C37 -> 0.25659 | K37: MCE's rate is | L37: =IF(I37<J37,"lower by","higher by") -> higher by | M37: =ABS(J37-I37) -> 0.00287 | N37: per kWh
A38: Summer Off Peak | B38: =C38-VLOOKUP($A$35,Rates!$A$21:$H$35,5,0)+VLOOKUP($A$35,Rates!$A$38:$H$52,5,0)+VLOOKUP(MAX('Data & Calculations'!$A$35:$A$46),'Data & Calculations'!$A$35:$D$46,4,0) -> 0.12346 | C38: =VLOOKUP(A$35,Rates!$A$2:$AB$19,5,0) -> 0.12705 | D38: MCE's rate is | E38: lower by | F38: 0.00359 | G38: per kWh | I38: =B38+0.01 -> 0.13346 | J38: =C38 -> 0.12705 | K38: MCE's rate is | L38: higher by | M38: 0.00641 | N38: per kWh
A39: Winter Peak | B39: =C39-VLOOKUP($A$35,Rates!$A$21:$H$35,6,0)+VLOOKUP($A$35,Rates!$A$38:$H$52,6,0)+VLOOKUP(MAX('Data & Calculations'!$A$35:$A$46),'Data & Calculations'!$A$35:$D$46,4,0) -> 0.31721 | C39: =VLOOKUP(A$35,Rates!$A$2:$AB$19,6,0) -> 0.32274 | D39: MCE's rate is | E39: lower by | F39: 0.00553 | G39: per kWh | I39: =B39+0.01 -> 0.32721 | J39: =C39 -> 0.32274 | K39: MCE's rate is | L39: higher by | M39: 0.00447 | N39: per kWh
A40: Winter Partial Peak | B40: =C40-VLOOKUP($A$35,Rates!$A$21:$H$35,7,0)+VLOOKUP($A$35,Rates!$A$38:$H$52,7,0)+VLOOKUP(MAX('Data & Calculations'!$A$35:$A$46),'Data & Calculations'!$A$35:$D$46,4,0) -> 0.19715 | C40: =VLOOKUP(A$35,Rates!$A$2:$AB$19,7,0) -> 0.20061 | D40: MCE's rate is | E40: lower by | F40: 0.00346 | G40: per kWh | I40: =B40+0.01 -> 0.20715 | J40: =C40 -> 0.20061 | K40: MCE's rate is | L40: higher by | M40: 0.00654 | N40: per kWh
A41: Winter Off Peak | B41: =C41-VLOOKUP($A$35,Rates!$A$21:$H$35,8,0)+VLOOKUP($A$35,Rates!$A$38:$H$52,8,0)+VLOOKUP(MAX('Data & Calculations'!$A$35:$A$46),'Data & Calculations'!$A$35:$D$46,4,0) -> 0.12624 | C41: =VLOOKUP(A$35,Rates!$A$2:$AB$19,8,0) -> 0.12995 | D41: MCE's rate is | E41: lower by | F41: 0.00371 | G41: per kWh | I41: 0.13624 | J41: 0.12995 | K41: MCE's rate is | L41: higher by | M41: 0.00629 | N41: per kWh
A43: ----- Closed to New Customers (ignores tiering, which is competitively irrelevant) -----
A44: =Rates!A14 -> E-6 (Time-of-Use) | B44: MCE Rebundled | C44: PG&E Bundled | D44: Result | I44: MCE Rebundled | J44: PG&E Bundled | K44: Result
A45: Summer Peak | B45: =C45-VLOOKUP($A$44,Rates!$A$21:$H$35,3,0)+VLOOKUP($A$44,Rates!$A$38:$H$52,3,0)+VLOOKUP(MAX('Data & Calculations'!$A$35:$A$46),'Data & Calculations'!$A$35:$D$46,4,0) -> 0.35697 | C45: =VLOOKUP(A$44,Rates!$A$2:$AB$19,3,0) -> 0.37123 | D45: MCE's rate is | E45: =IF(B45<C45,"lower by","higher by") -> lower by | F45: =ABS(C45-B45) -> 0.01426 | G45: per kWh | I45: =B45+0.01 -> 0.36697 | J45: =C45 -> 0.37123 | K45: MCE's rate is | L45: =IF(I45<J45,"lower by","higher by") -> lower by | M45: =ABS(J45-I45) -> 0.00426 | N45: per kWh
A46: Summer Partial Peak | B46: =C46-VLOOKUP($A$44,Rates!$A$21:$H$35,4,0)+VLOOKUP($A$44,Rates!$A$38:$H$52,4,0)+VLOOKUP(MAX('Data & Calculations'!$A$35:$A$46),'Data & Calculations'!$A$35:$D$46,4,0) -> 0.24847 | C46: =VLOOKUP(A$44,Rates!$A$2:$AB$19,4,0) -> 0.25596 | D46: MCE's rate is | E46: =IF(B46<C46,"lower by","higher by") -> lower by | F46: =ABS(C46-B46) -> 0.00749 | G46: per kWh | I46: =B46+0.01 -> 0.25847 | J46: =C46 -> 0.25596 | K46: MCE's rate is | L46: =IF(I46<J46,"lower by","higher by") -> higher by | M46: =ABS(J46-I46) -> 0.00251 | N46: per kWh
A47: Summer Off Peak | B47: =C47-VLOOKUP($A$44,Rates!$A$21:$H$35,5,0)+VLOOKUP($A$44,Rates!$A$38:$H$52,5,0)+VLOOKUP(MAX('Data & Calculations'!$A$35:$A$46),'Data & Calculations'!$A$35:$D$46,4,0) -> 0.17445 | C47: =VLOOKUP(A$44,Rates!$A$2:$AB$19,5,0) -> 0.17918 | D47: MCE's rate is | E47: lower by | F47: 0.00473 | G47: per kWh | I47: =B47+0.01 -> 0.18445 | J47: =C47 -> 0.17918 | K47: MCE's rate is | L47: higher by | M47: 0.00527 | N47: per kWh
A48: Winter Partial Peak | B48: =C48-VLOOKUP($A$44,Rates!$A$21:$H$35,7,0)+VLOOKUP($A$44,Rates!$A$38:$H$52,7,0)+VLOOKUP(MAX('Data & Calculations'!$A$35:$A$46),'Data & Calculations'!$A$35:$D$46,4,0) -> 0.19409 | C48: =VLOOKUP(A$44,Rates!$A$2:$AB$19,7,0) -> 0.20035 | D48: MCE's rate is | E48: lower by | F48: 0.00626 | G48: per kWh | I48: =B48+0.01 -> 0.20409 | J48: =C48 -> 0.20035 | K48: MCE's rate is | L48: higher by | M48: 0.00374 | N48: per kWh
A49: Winter Off Peak | B49: =C49-VLOOKUP($A$44,Rates!$A$21:$H$35,8,0)+VLOOKUP($A$44,Rates!$A$38:$H$52,8,0)+VLOOKUP(MAX('Data & Calculations'!$A$35:$A$46),'Data & Calculations'!$A$35:$D$46,4,0) -> 0.17802 | C49: =VLOOKUP(A$44,Rates!$A$2:$AB$19,8,0) -> 0.18352 | D49: MCE's rate is | E49: lower by | F49: 0.0055 | G49: per kWh | I49: 0.18802 | J49: 0.18352 | K49: MCE's rate is | L49: higher by | M49: 0.0045 | N49: per kWh
A51: Note: Rebundled rates assume the most current PCIA vintage. Other vintages may result in small adjustments to the above rates.

Sheet Changelog (hidden)
A1: Date | B1: Change
A2: 2016-04-29 | B2: Beta version completed, to staff for review.
A3: 2016-05-04 | B3: Cosmetic Changes
B4: Corrected EV rate description
B5: Hid and locked cell editing for public use to restrict potentially breaking calculations
A6: 2016-05-23 | B6: Replaced IFNA command with IFERROR; IFNA is not well supported in Excel. May need to replace with IF(ISERROR()) later.
A7: 2016-11-15 | B7: Rebundled Rates Added
A8: 2017-01-03 | B8: Updated for PG&E AET
A9: 2017-03-01 | B9: Changes for PG&E 3/1 change (tiers, etc)
B10: Updated Local Sol implementation date
B11: Added MCE 4/1 Rates
